[Event "Titled Tuesday Blitz May 4 2021"]
[White "maxsergej"]
[Black "Ezat, Mohamed"]
[BlackFideId "10600906"]
[WhiteElo "2044"]
[BlackElo "2417"]
[Result "0-1"]
[Round "01"]
[TimeControl "180+1"]
[Date "2021.05.04"]
[WhiteClock "0:00:08"]
[BlackClock "0:01:16"]

1. e4 {[%clk 0:02:59]}  c6 {[%clk 0:02:58]} 2. d4 {[%clk 0:02:58]}  d5 {[%clk 0:02:58]} 3. exd5 {[%clk 0:02:58]}  cxd5 {[%clk 0:02:57]} 4. c4 {[%clk 0:02:59]}  Nf6 {[%clk 0:02:57]} 5. Nc3 {[%clk 0:02:59]}  Nc6 {[%clk 0:02:58]} 6. Nf3 {[%clk 0:02:58]}  Bg4 {[%clk 0:02:57]} 7. cxd5 {[%clk 0:02:58]}  Nxd5 {[%clk 0:02:57]} 8. Qb3 {[%clk 0:02:58]}  Bxf3 {[%clk 0:02:57]} 9. gxf3 {[%clk 0:02:57]}  Nb6 {[%clk 0:02:58]} 10. Be3 {[%clk 0:02:56]}  e6 {[%clk 0:02:57]} 11. Rd1 {[%clk 0:02:52]}  Be7 {[%clk 0:02:56]} 12. Rg1 {[%clk 0:02:50]}  O-O {[%clk 0:02:54]} 13. Bd3 {[%clk 0:02:39]}  Bf6 {[%clk 0:02:40]} 14. Ne4 {[%clk 0:02:31]}  Bxd4 {[%clk 0:02:36]} 15. Ng5 {[%clk 0:02:13]}  g6 {[%clk 0:02:30]} 16. Be4 {[%clk 0:02:07]}  Qf6 {[%clk 0:02:12]} 17. Bxc6 {[%clk 0:01:57]}  Bxe3 {[%clk 0:02:11]} 18. Qxe3 {[%clk 0:01:43]}  bxc6 {[%clk 0:02:11]} 19. Ne4 {[%clk 0:01:38]}  Qxb2 {[%clk 0:02:02]} 20. Qg5 {[%clk 0:01:15]}  f5 {[%clk 0:01:43]} 21. Nd2 {[%clk 0:00:32]}  Rad8 {[%clk 0:01:38]} 22. h4 {[%clk 0:00:25]}  Qf6 {[%clk 0:01:28]} 23. Qh6 {[%clk 0:00:16]}  Qg7 {[%clk 0:01:24]} 24. Qe3 {[%clk 0:00:13]}  Nd5 {[%clk 0:01:22]} 25. Qc5 {[%clk 0:00:10]}  Nf4 {[%clk 0:01:18]} 26. Qxc6 {[%clk 0:00:08]}  Qe5+ {[%clk 0:01:16]} 0-1


[Site "https://www.chess.com"]

[Event "Titled Tuesday Blitz May 4 2021"]
[White "serhanberat_ozdemir"]
[Black "Abdisalimov, Abdimalik"]
[BlackFideId "14206323"]
[WhiteElo "2597"]
[BlackElo "2389"]
[Result "0-1"]
[Round "01"]
[TimeControl "180+1"]
[Date "2021.05.04"]
[WhiteClock "0:00:01"]
[BlackClock "0:00:30"]

1. e4 {[%clk 0:03:00]}  c5 {[%clk 0:02:59]} 2. Nf3 {[%clk 0:03:01]}  d6 {[%clk 0:02:59]} 3. d4 {[%clk 0:03:02]}  cxd4 {[%clk 0:03:00]} 4. Nxd4 {[%clk 0:03:02]}  Nf6 {[%clk 0:02:59]} 5. Nc3 {[%clk 0:03:03]}  a6 {[%clk 0:02:58]} 6. f3 {[%clk 0:03:03]}  e5 {[%clk 0:02:56]} 7. Nb3 {[%clk 0:03:04]}  Qc7 {[%clk 0:02:55]} 8. Be3 {[%clk 0:03:03]}  Be7 {[%clk 0:02:54]} 9. Qd2 {[%clk 0:03:04]}  b5 {[%clk 0:02:54]} 10. O-O-O {[%clk 0:02:55]}  O-O {[%clk 0:02:50]} 11. g4 {[%clk 0:02:54]}  Be6 {[%clk 0:02:42]} 12. h4 {[%clk 0:02:38]}  Nbd7 {[%clk 0:02:33]} 13. h5 {[%clk 0:02:30]}  h6 {[%clk 0:02:27]} 14. g5 {[%clk 0:02:19]}  hxg5 {[%clk 0:02:23]} 15. Bxg5 {[%clk 0:02:19]}  b4 {[%clk 0:02:21]} 16. Nd5 {[%clk 0:02:18]}  Bxd5 {[%clk 0:02:21]} 17. exd5 {[%clk 0:02:19]}  a5 {[%clk 0:02:18]} 18. Kb1 {[%clk 0:02:15]}  a4 {[%clk 0:02:07]} 19. Nc1 {[%clk 0:02:15]}  Rfc8 {[%clk 0:02:06]} 20. Bd3 {[%clk 0:02:07]}  b3 {[%clk 0:02:02]} 21. cxb3 {[%clk 0:01:52]}  axb3 {[%clk 0:02:00]} 22. Nxb3 {[%clk 0:01:53]}  Qa7 {[%clk 0:01:57]} 23. a3 {[%clk 0:01:45]}  Rcb8 {[%clk 0:01:52]} 24. Bc2 {[%clk 0:00:47]}  Nc5 {[%clk 0:01:49]} 25. Ka2 {[%clk 0:00:46]}  Nxb3 {[%clk 0:01:45]} 26. Bxb3 {[%clk 0:00:47]}  Rb7 {[%clk 0:01:38]} 27. Be3 {[%clk 0:00:43]}  Qa6 {[%clk 0:01:37]} 28. Qd3 {[%clk 0:00:35]}  Qa5 {[%clk 0:01:34]} 29. Rc1 {[%clk 0:00:27]}  Rab8 {[%clk 0:01:32]} 30. Rc3 {[%clk 0:00:27]}  Bd8 {[%clk 0:01:30]} 31. h6 {[%clk 0:00:26]}  g6 {[%clk 0:01:31]} 32. h7+ {[%clk 0:00:26]}  Nxh7 {[%clk 0:01:29]} 33. f4 {[%clk 0:00:25]}  Bf6 {[%clk 0:01:28]} 34. Bd2 {[%clk 0:00:18]}  Nf8 {[%clk 0:01:23]} 35. Qh3 {[%clk 0:00:16]}  Qb6 {[%clk 0:01:23]} 36. f5 {[%clk 0:00:14]}  e4 {[%clk 0:01:22]} 37. fxg6 {[%clk 0:00:15]}  fxg6 {[%clk 0:01:20]} 38. Rg3 {[%clk 0:00:14]}  Qd4 {[%clk 0:01:17]} 39. Bc3 {[%clk 0:00:14]}  Rxb3 {[%clk 0:00:58]} 40. Rxg6+ {[%clk 0:00:10]}  Nxg6 {[%clk 0:00:56]} 41. Qe6+ {[%clk 0:00:11]}  Kg7 {[%clk 0:00:55]} 42. Bxd4 {[%clk 0:00:09]}  Rxb2+ {[%clk 0:00:55]} 43. Bxb2 {[%clk 0:00:08]}  Rxb2+ {[%clk 0:00:56]} 44. Ka1 {[%clk 0:00:09]}  Rb6+ {[%clk 0:00:55]} 45. Ka2 {[%clk 0:00:08]}  Rb2+ {[%clk 0:00:53]} 46. Ka1 {[%clk 0:00:08]}  Rh2+ {[%clk 0:00:50]} 47. Qxf6+ {[%clk 0:00:06]}  Kxf6 {[%clk 0:00:51]} 48. Rxh2 {[%clk 0:00:07]}  Nf4 {[%clk 0:00:52]} 49. a4 {[%clk 0:00:06]}  Nxd5 {[%clk 0:00:50]} 50. a5 {[%clk 0:00:06]}  Nb4 {[%clk 0:00:50]} 51. Rb2 {[%clk 0:00:05]}  Na6 {[%clk 0:00:49]} 52. Rb6 {[%clk 0:00:05]}  e3 {[%clk 0:00:46]} 53. Rxd6+ {[%clk 0:00:04]}  Ke5 {[%clk 0:00:44]} 54. Rd8 {[%clk 0:00:02]}  Ke4 {[%clk 0:00:43]} 55. Re8+ {[%clk 0:00:02]}  Kd3 {[%clk 0:00:42]} 56. Ka2 {[%clk 0:00:03]}  e2 {[%clk 0:00:40]} 57. Kb2 {[%clk 0:00:04]}  Nc5 {[%clk 0:00:38]} 58. Rd8+ {[%clk 0:00:04]}  Ke3 {[%clk 0:00:37]} 59. Re8+ {[%clk 0:00:01]}  Ne4 {[%clk 0:00:37]} 60. Rb8 {[%clk 0:00:01]}  e1=Q {[%clk 0:00:37]} 61. Rb3+ {[%clk 0:00:01]}  Kd4 {[%clk 0:00:34]} 62. Ra3 {[%clk 0:00:02]}  Qb4+ {[%clk 0:00:32]} 63. Ka2 {[%clk 0:00:01]}  Nc3+ {[%clk 0:00:30]} 0-1


[Site "https://www.chess.com"]

[Event "Titled Tuesday Blitz May 4 2021"]
[White "Abdisalimov, Abdimalik"]
[Black "ValeriyGrinev"]
[WhiteFideId "14206323"]
[WhiteElo "2389"]
[BlackElo "2618"]
[Result "1-0"]
[Round "02"]
[TimeControl "180+1"]
[Date "2021.05.04"]
[WhiteClock "0:00:58"]
[BlackClock "0:00:22"]

1. e4 {[%clk 0:03:00]}  c5 {[%clk 0:02:59]} 2. Nf3 {[%clk 0:03:01]}  d6 {[%clk 0:03:00]} 3. d4 {[%clk 0:03:00]}  cxd4 {[%clk 0:03:01]} 4. Nxd4 {[%clk 0:03:01]}  Nf6 {[%clk 0:03:01]} 5. Nc3 {[%clk 0:03:01]}  g6 {[%clk 0:03:02]} 6. f4 {[%clk 0:02:59]}  Nc6 {[%clk 0:03:01]} 7. Be2 {[%clk 0:02:58]}  Bg7 {[%clk 0:02:58]} 8. Be3 {[%clk 0:02:55]}  O-O {[%clk 0:02:55]} 9. h3 {[%clk 0:02:52]}  Qb6 {[%clk 0:02:52]} 10. Nxc6 {[%clk 0:02:50]}  Qxc6 {[%clk 0:02:39]} 11. Bf3 {[%clk 0:02:48]}  Qa6 {[%clk 0:02:25]} 12. Qd2 {[%clk 0:02:43]}  Be6 {[%clk 0:02:24]} 13. a3 {[%clk 0:02:33]}  Rfc8 {[%clk 0:02:24]} 14. O-O-O {[%clk 0:02:33]}  b5 {[%clk 0:02:14]} 15. Be2 {[%clk 0:02:29]}  Rab8 {[%clk 0:02:13]} 16. Bd4 {[%clk 0:02:27]}  Qa5 {[%clk 0:02:05]} 17. Nd5 {[%clk 0:02:25]}  Qxd2+ {[%clk 0:02:04]} 18. Rxd2 {[%clk 0:02:24]}  Bxd5 {[%clk 0:01:43]} 19. exd5 {[%clk 0:02:20]}  Nd7 {[%clk 0:01:43]} 20. Bxg7 {[%clk 0:02:18]}  Kxg7 {[%clk 0:01:44]} 21. Rd4 {[%clk 0:02:12]}  a5 {[%clk 0:01:42]} 22. Kb1 {[%clk 0:02:08]}  b4 {[%clk 0:01:41]} 23. axb4 {[%clk 0:02:09]}  Rxb4 {[%clk 0:01:41]} 24. Rxb4 {[%clk 0:02:08]}  axb4 {[%clk 0:01:42]} 25. Rd1 {[%clk 0:02:06]}  Nc5 {[%clk 0:01:40]} 26. Rd4 {[%clk 0:02:02]}  Rb8 {[%clk 0:01:39]} 27. b3 {[%clk 0:02:01]}  h5 {[%clk 0:01:37]} 28. g4 {[%clk 0:01:58]}  hxg4 {[%clk 0:01:37]} 29. hxg4 {[%clk 0:01:59]}  Kf6 {[%clk 0:01:25]} 30. Kc1 {[%clk 0:01:54]}  g5 {[%clk 0:01:24]} 31. Bd3 {[%clk 0:01:49]}  gxf4 {[%clk 0:01:06]} 32. Rxf4+ {[%clk 0:01:47]}  Kg7 {[%clk 0:01:07]} 33. Kd2 {[%clk 0:01:47]}  e5 {[%clk 0:01:03]} 34. dxe6 {[%clk 0:01:44]}  fxe6 {[%clk 0:01:04]} 35. Ke3 {[%clk 0:01:40]}  e5 {[%clk 0:01:04]} 36. Rf5 {[%clk 0:01:40]}  Rh8 {[%clk 0:01:03]} 37. Rg5+ {[%clk 0:01:37]}  Kf6 {[%clk 0:01:02]} 38. Rf5+ {[%clk 0:01:38]}  Ke7 {[%clk 0:01:03]} 39. g5 {[%clk 0:01:32]}  Rh3+ {[%clk 0:01:03]} 40. Rf3 {[%clk 0:01:29]}  Rxf3+ {[%clk 0:00:44]} 41. Kxf3 {[%clk 0:01:30]}  d5 {[%clk 0:00:44]} 42. Kg4 {[%clk 0:01:28]}  e4 {[%clk 0:00:44]} 43. Be2 {[%clk 0:01:25]}  d4 {[%clk 0:00:44]} 44. Kf5 {[%clk 0:01:23]}  d3 {[%clk 0:00:45]} 45. cxd3 {[%clk 0:01:23]}  exd3 {[%clk 0:00:46]} 46. Bd1 {[%clk 0:01:23]}  d2 {[%clk 0:00:41]} 47. g6 {[%clk 0:01:22]}  Nd3 {[%clk 0:00:40]} 48. Kg5 {[%clk 0:01:12]}  Nf2 {[%clk 0:00:34]} 49. g7 {[%clk 0:01:10]}  Kf7 {[%clk 0:00:30]} 50. Kh6 {[%clk 0:01:10]}  Ne4 {[%clk 0:00:27]} 51. Kh7 {[%clk 0:01:07]}  Nf6+ {[%clk 0:00:27]} 52. Kh8 {[%clk 0:01:07]}  Kg6 {[%clk 0:00:17]} 53. g8=Q+ {[%clk 0:01:05]}  Nxg8 {[%clk 0:00:18]} 54. Kxg8 {[%clk 0:01:06]}  Kf5 {[%clk 0:00:19]} 55. Kf7 {[%clk 0:01:05]}  Kf4 {[%clk 0:00:19]} 56. Ke6 {[%clk 0:01:03]}  Ke3 {[%clk 0:00:20]} 57. Kd5 {[%clk 0:01:01]}  Kf2 {[%clk 0:00:21]} 58. Kc5 {[%clk 0:01:00]}  Ke1 {[%clk 0:00:22]} 59. Bc2 {[%clk 0:00:58]} 1-0


[Site "https://www.chess.com"]

[Event "Titled Tuesday Blitz May 4 2021"]
[White "Aditya Mittal"]
[Black "Sztokbant, Bernardo Vainzoff"]
[WhiteFideId "35042025"]
[BlackFideId "2115956"]
[WhiteElo "2171"]
[BlackElo "2264"]
[Result "1-0"]
[Round "02"]
[TimeControl "180+1"]
[Date "2021.05.04"]
[WhiteClock "0:00:35"]
[BlackClock "0:00:07"]

1. d4 {[%clk 0:03:00]}  Nf6 {[%clk 0:02:56]} 2. c4 {[%clk 0:03:01]}  e6 {[%clk 0:02:52]} 3. Nc3 {[%clk 0:03:00]}  d5 {[%clk 0:02:44]} 4. cxd5 {[%clk 0:02:59]}  exd5 {[%clk 0:02:43]} 5. Bg5 {[%clk 0:02:59]}  c6 {[%clk 0:02:43]} 6. e3 {[%clk 0:02:59]}  Be7 {[%clk 0:02:44]} 7. Bd3 {[%clk 0:03:00]}  Nbd7 {[%clk 0:02:44]} 8. Nge2 {[%clk 0:03:00]}  O-O {[%clk 0:02:44]} 9. O-O {[%clk 0:03:01]}  Re8 {[%clk 0:02:43]} 10. Qc2 {[%clk 0:03:02]}  Nf8 {[%clk 0:02:44]} 11. f3 {[%clk 0:03:01]}  g6 {[%clk 0:02:34]} 12. Bh4 {[%clk 0:03:01]}  Ne6 {[%clk 0:02:33]} 13. Rad1 {[%clk 0:03:01]}  Ng7 {[%clk 0:02:33]} 14. Bf2 {[%clk 0:02:54]}  Bd6 {[%clk 0:02:27]} 15. h3 {[%clk 0:02:47]}  Bc7 {[%clk 0:02:23]} 16. e4 {[%clk 0:02:45]}  Be6 {[%clk 0:02:06]} 17. e5 {[%clk 0:02:42]}  Nd7 {[%clk 0:02:06]} 18. g4 {[%clk 0:02:38]}  f5 {[%clk 0:02:01]} 19. Kg2 {[%clk 0:02:24]}  Qe7 {[%clk 0:02:00]} 20. a3 {[%clk 0:02:15]}  Rf8 {[%clk 0:01:59]} 21. b4 {[%clk 0:02:13]}  a5 {[%clk 0:01:57]} 22. Rb1 {[%clk 0:02:06]}  axb4 {[%clk 0:01:57]} 23. axb4 {[%clk 0:02:06]}  b5 {[%clk 0:01:56]} 24. Qd2 {[%clk 0:01:54]}  Nb6 {[%clk 0:01:53]} 25. Nf4 {[%clk 0:01:48]}  fxg4 {[%clk 0:01:32]} 26. fxg4 {[%clk 0:01:41]}  Ra3 {[%clk 0:01:27]} 27. Be3 {[%clk 0:01:32]}  Nc4 {[%clk 0:01:13]} 28. Bxc4 {[%clk 0:01:31]}  dxc4 {[%clk 0:01:14]} 29. Ne4 {[%clk 0:01:24]}  Rxf4 {[%clk 0:00:49]} 30. Rxf4 {[%clk 0:01:13]}  Bd5 {[%clk 0:00:49]} 31. Kh2 {[%clk 0:01:06]}  Bxe4 {[%clk 0:00:33]} 32. Rxe4 {[%clk 0:01:07]}  Ne6 {[%clk 0:00:26]} 33. Rf1 {[%clk 0:00:56]}  Qd7 {[%clk 0:00:22]} 34. Bh6 {[%clk 0:00:52]}  Ra8 {[%clk 0:00:13]} 35. Qf2 {[%clk 0:00:48]}  c3 {[%clk 0:00:09]} 36. Re3 {[%clk 0:00:38]}  Nxd4 {[%clk 0:00:07]} 37. Qf8+ {[%clk 0:00:35]} 1-0


[Site "https://www.chess.com"]

[Event "Titled Tuesday Blitz May 4 2021"]
[White "Alexeev, Alexey"]
[Black "Roebers, Jan"]
[WhiteFideId "14106663"]
[BlackFideId "1007815"]
[WhiteElo "2185"]
[BlackElo "2194"]
[Result "1-0"]
[Round "02"]
[TimeControl "180+1"]
[Date "2021.05.04"]
[WhiteClock "0:01:19"]
[BlackClock "0:00:01"]

1. e4 {[%clk 0:03:00]}  e5 {[%clk 0:02:59]} 2. Nf3 {[%clk 0:02:58]}  Nc6 {[%clk 0:02:59]} 3. Bc4 {[%clk 0:02:57]}  Nf6 {[%clk 0:02:58]} 4. d3 {[%clk 0:02:57]}  Bc5 {[%clk 0:02:56]} 5. c3 {[%clk 0:02:56]}  O-O {[%clk 0:02:55]} 6. O-O {[%clk 0:02:54]}  d5 {[%clk 0:02:54]} 7. exd5 {[%clk 0:02:54]}  Nxd5 {[%clk 0:02:54]} 8. Re1 {[%clk 0:02:53]}  Nb6 {[%clk 0:02:54]} 9. Bb5 {[%clk 0:02:51]}  Bd7 {[%clk 0:02:54]} 10. Bxc6 {[%clk 0:02:50]}  Bxc6 {[%clk 0:02:52]} 11. Nxe5 {[%clk 0:02:49]}  Be8 {[%clk 0:02:45]} 12. d4 {[%clk 0:02:49]}  Bd6 {[%clk 0:02:45]} 13. Nd2 {[%clk 0:02:44]}  Nd7 {[%clk 0:02:45]} 14. Ndf3 {[%clk 0:02:43]}  Nxe5 {[%clk 0:02:42]} 15. dxe5 {[%clk 0:02:42]}  Bc5 {[%clk 0:02:40]} 16. Be3 {[%clk 0:02:42]}  Bb6 {[%clk 0:02:32]} 17. Qxd8 {[%clk 0:02:37]}  Rxd8 {[%clk 0:02:27]} 18. Bxb6 {[%clk 0:02:37]}  axb6 {[%clk 0:02:25]} 19. Rad1 {[%clk 0:02:36]}  Bc6 {[%clk 0:02:24]} 20. Nd4 {[%clk 0:02:36]}  Bd5 {[%clk 0:02:20]} 21. b3 {[%clk 0:02:35]}  Rfe8 {[%clk 0:02:18]} 22. c4 {[%clk 0:02:34]}  Be6 {[%clk 0:02:15]} 23. Nxe6 {[%clk 0:02:20]}  fxe6 {[%clk 0:02:04]} 24. f4 {[%clk 0:02:17]}  Kf7 {[%clk 0:02:03]} 25. Kf2 {[%clk 0:02:16]}  Ke7 {[%clk 0:02:01]} 26. Ke3 {[%clk 0:02:15]}  c6 {[%clk 0:01:41]} 27. g4 {[%clk 0:02:13]}  b5 {[%clk 0:01:37]} 28. c5 {[%clk 0:02:06]}  Ra8 {[%clk 0:01:30]} 29. Re2 {[%clk 0:02:01]}  Red8 {[%clk 0:01:16]} 30. Rd6 {[%clk 0:02:00]}  Rxd6 {[%clk 0:01:08]} 31. cxd6+ {[%clk 0:01:57]}  Kd7 {[%clk 0:01:07]} 32. f5 {[%clk 0:01:56]}  b4 {[%clk 0:00:58]} 33. Ke4 {[%clk 0:01:55]}  c5 {[%clk 0:00:46]} 34. Rd2 {[%clk 0:01:53]}  b5 {[%clk 0:00:43]} 35. Rc2 {[%clk 0:01:43]}  Rc8 {[%clk 0:00:40]} 36. h4 {[%clk 0:01:41]}  c4 {[%clk 0:00:38]} 37. bxc4 {[%clk 0:01:40]}  bxc4 {[%clk 0:00:38]} 38. Kd4 {[%clk 0:01:40]}  c3 {[%clk 0:00:37]} 39. Kd3 {[%clk 0:01:35]}  Rc5 {[%clk 0:00:31]} 40. fxe6+ {[%clk 0:01:31]}  Kxe6 {[%clk 0:00:28]} 41. Re2 {[%clk 0:01:27]}  Rd5+ {[%clk 0:00:20]} 42. Kc2 {[%clk 0:01:26]}  Rd4 {[%clk 0:00:10]} 43. Re3 {[%clk 0:01:21]}  Rxg4 {[%clk 0:00:07]} 44. Rd3 {[%clk 0:01:21]}  Rg2+ {[%clk 0:00:03]} 45. Kc1 {[%clk 0:01:21]}  Rg1+ {[%clk 0:00:01]} 46. Rd1 {[%clk 0:01:19]} 1-0


[Site "https://www.chess.com"]

[Event "Titled Tuesday Blitz May 4 2021"]
[White "Araujo Filho, Luiz Antonio Coel"]
[Black "Saravana, Krishnan P."]
[WhiteFideId "2130661"]
[BlackFideId "5018382"]
[WhiteElo "2241"]
[BlackElo "2245"]
[Result "0-1"]
[Round "02"]
[TimeControl "180+1"]
[Date "2021.05.04"]
[WhiteClock "0:00:01"]
[BlackClock "0:00:18"]

1. d4 {[%clk 0:03:00]}  Nf6 {[%clk 0:02:59]} 2. Nf3 {[%clk 0:02:58]}  g6 {[%clk 0:02:57]} 3. c4 {[%clk 0:02:58]}  Bg7 {[%clk 0:02:56]} 4. Nc3 {[%clk 0:02:59]}  O-O {[%clk 0:02:56]} 5. e4 {[%clk 0:02:59]}  d6 {[%clk 0:02:57]} 6. Be2 {[%clk 0:02:59]}  e5 {[%clk 0:02:57]} 7. dxe5 {[%clk 0:03:00]}  dxe5 {[%clk 0:02:57]} 8. O-O {[%clk 0:03:01]}  Nbd7 {[%clk 0:02:53]} 9. Qc2 {[%clk 0:02:58]}  c6 {[%clk 0:02:52]} 10. b4 {[%clk 0:02:55]}  a5 {[%clk 0:02:47]} 11. b5 {[%clk 0:02:55]}  Nc5 {[%clk 0:02:45]} 12. Ba3 {[%clk 0:02:51]}  Nfd7 {[%clk 0:02:42]} 13. Rfd1 {[%clk 0:02:50]}  Qb6 {[%clk 0:02:33]} 14. Rab1 {[%clk 0:02:48]}  Ne6 {[%clk 0:02:23]} 15. Na4 {[%clk 0:02:24]}  Qd8 {[%clk 0:02:19]} 16. Bxf8 {[%clk 0:01:43]}  Qxf8 {[%clk 0:02:20]} 17. bxc6 {[%clk 0:01:41]}  bxc6 {[%clk 0:02:18]} 18. Nb6 {[%clk 0:01:41]}  Nxb6 {[%clk 0:02:18]} 19. Rxb6 {[%clk 0:01:41]}  Qc5 {[%clk 0:02:17]} 20. Qb2 {[%clk 0:01:35]}  Bf6 {[%clk 0:02:09]} 21. Rb8 {[%clk 0:01:30]}  Qa7 {[%clk 0:02:01]} 22. Rxa8 {[%clk 0:01:10]}  Qxa8 {[%clk 0:02:02]} 23. Qb6 {[%clk 0:00:58]}  c5 {[%clk 0:01:59]} 24. Bf1 {[%clk 0:00:40]}  Kg7 {[%clk 0:01:56]} 25. h3 {[%clk 0:00:26]}  Qxe4 {[%clk 0:01:53]} 26. Qxa5 {[%clk 0:00:26]}  Bb7 {[%clk 0:01:51]} 27. Qb6 {[%clk 0:00:20]}  Ba8 {[%clk 0:01:49]} 28. a4 {[%clk 0:00:20]}  Qc2 {[%clk 0:01:48]} 29. Re1 {[%clk 0:00:16]}  Bxf3 {[%clk 0:01:42]} 30. gxf3 {[%clk 0:00:16]}  Qxa4 {[%clk 0:01:41]} 31. Re3 {[%clk 0:00:10]}  Qa1 {[%clk 0:01:34]} 32. Kg2 {[%clk 0:00:09]}  Nf4+ {[%clk 0:01:33]} 33. Kg1 {[%clk 0:00:08]}  Qd4 {[%clk 0:01:31]} 34. Qc6 {[%clk 0:00:04]}  Bg5 {[%clk 0:01:25]} 35. Qe4 {[%clk 0:00:01]}  Qd8 {[%clk 0:00:32]} 36. Qxe5+ {[%clk 0:00:01]}  Kh6 {[%clk 0:00:32]} 37. Qe4 {[%clk 0:00:01]}  Ne6 {[%clk 0:00:28]} 38. Rd3 {[%clk 0:00:01]}  Qf6 {[%clk 0:00:27]} 39. Qg4 {[%clk 0:00:01]}  Kg7 {[%clk 0:00:21]} 40. Rd5 {[%clk 0:00:02]}  h5 {[%clk 0:00:20]} 41. Qg2 {[%clk 0:00:01]}  Bh4 {[%clk 0:00:19]} 42. Qh2 {[%clk 0:00:01]}  Nf4 {[%clk 0:00:19]} 43. Rd7 {[%clk 0:00:01]}  Qg5+ {[%clk 0:00:18]} 44. Kh1 {[%clk 0:00:01]}  Ne6 {[%clk 0:00:18]} 0-1


[Site "https://www.chess.com"]

[Event "Titled Tuesday Blitz May 4 2021"]
[White "Arkell, Keith C"]
[Black "Vargas, Gabriela"]
[WhiteFideId "400270"]
[BlackFideId "3700860"]
[WhiteElo "2398"]
[BlackElo "2116"]
[Result "1-0"]
[Round "02"]
[TimeControl "180+1"]
[Date "2021.05.04"]
[WhiteClock "0:00:04"]
[BlackClock "0:00:08"]

1. d4 {[%clk 0:03:00]}  d5 {[%clk 0:02:59]} 2. Nf3 {[%clk 0:03:00]}  c6 {[%clk 0:02:59]} 3. c4 {[%clk 0:02:57]}  Nf6 {[%clk 0:02:58]} 4. Qc2 {[%clk 0:02:54]}  g6 {[%clk 0:02:54]} 5. Bf4 {[%clk 0:02:52]}  Bf5 {[%clk 0:02:54]} 6. Qb3 {[%clk 0:02:52]}  Qb6 {[%clk 0:02:54]} 7. e3 {[%clk 0:02:52]}  Nbd7 {[%clk 0:02:53]} 8. Nc3 {[%clk 0:02:52]}  Qxb3 {[%clk 0:02:51]} 9. axb3 {[%clk 0:02:52]}  e6 {[%clk 0:02:51]} 10. h3 {[%clk 0:02:49]}  Bb4 {[%clk 0:02:41]} 11. Be2 {[%clk 0:02:46]}  Ne4 {[%clk 0:02:40]} 12. Rc1 {[%clk 0:02:46]}  h6 {[%clk 0:02:37]} 13. g4 {[%clk 0:02:45]}  g5 {[%clk 0:02:36]} 14. Bh2 {[%clk 0:02:17]}  Bh7 {[%clk 0:02:26]} 15. O-O {[%clk 0:02:12]}  f5 {[%clk 0:02:19]} 16. Rfd1 {[%clk 0:02:00]}  fxg4 {[%clk 0:02:02]} 17. hxg4 {[%clk 0:01:56]}  O-O {[%clk 0:02:02]} 18. Nxe4 {[%clk 0:01:52]}  Bxe4 {[%clk 0:01:57]} 19. Ne5 {[%clk 0:01:52]}  Nxe5 {[%clk 0:01:51]} 20. Bxe5 {[%clk 0:01:53]}  Be7 {[%clk 0:01:44]} 21. cxd5 {[%clk 0:01:43]}  exd5 {[%clk 0:01:45]} 22. Rf1 {[%clk 0:01:29]}  Bf6 {[%clk 0:01:40]} 23. Bxf6 {[%clk 0:01:28]}  Rxf6 {[%clk 0:01:41]} 24. f3 {[%clk 0:01:29]}  Bg6 {[%clk 0:01:39]} 25. Kg2 {[%clk 0:01:23]}  Re8 {[%clk 0:01:39]} 26. Rc3 {[%clk 0:01:23]}  Rfe6 {[%clk 0:01:35]} 27. Kf2 {[%clk 0:01:23]}  Kg7 {[%clk 0:01:36]} 28. Re1 {[%clk 0:01:20]}  h5 {[%clk 0:01:30]} 29. gxh5 {[%clk 0:01:20]}  Bxh5 {[%clk 0:01:31]} 30. Rg1 {[%clk 0:01:13]}  Kf6 {[%clk 0:01:24]} 31. f4 {[%clk 0:01:13]}  Bxe2 {[%clk 0:01:16]} 32. fxg5+ {[%clk 0:01:13]}  Kg6 {[%clk 0:01:06]} 33. Kxe2 {[%clk 0:01:14]}  Rh8 {[%clk 0:01:06]} 34. Rg2 {[%clk 0:01:06]}  Rh5 {[%clk 0:01:04]} 35. Rc1 {[%clk 0:01:05]}  Rh3 {[%clk 0:01:00]} 36. Rc3 {[%clk 0:01:01]}  Rh5 {[%clk 0:00:59]} 37. b4 {[%clk 0:00:59]}  a6 {[%clk 0:00:59]} 38. Kd3 {[%clk 0:00:54]}  Rxg5 {[%clk 0:00:49]} 39. Rxg5+ {[%clk 0:00:52]}  Kxg5 {[%clk 0:00:50]} 40. Rc1 {[%clk 0:00:53]}  Kg4 {[%clk 0:00:43]} 41. Rg1+ {[%clk 0:00:52]}  Kf3 {[%clk 0:00:43]} 42. Rf1+ {[%clk 0:00:52]}  Kg2 {[%clk 0:00:32]} 43. Rf7 {[%clk 0:00:52]}  b5 {[%clk 0:00:28]} 44. Ke2 {[%clk 0:00:50]}  Kg3 {[%clk 0:00:23]} 45. Rg7+ {[%clk 0:00:50]}  Kh4 {[%clk 0:00:22]} 46. Ra7 {[%clk 0:00:49]}  Rg6 {[%clk 0:00:20]} 47. Rxa6 {[%clk 0:00:47]}  Rg2+ {[%clk 0:00:20]} 48. Kf3 {[%clk 0:00:44]}  Rxb2 {[%clk 0:00:21]} 49. Rxc6 {[%clk 0:00:44]}  Rxb4 {[%clk 0:00:21]} 50. Rc5 {[%clk 0:00:43]}  Rb1 {[%clk 0:00:18]} 51. Rxd5 {[%clk 0:00:42]}  b4 {[%clk 0:00:19]} 52. Rb5 {[%clk 0:00:40]}  b3 {[%clk 0:00:19]} 53. Ke4 {[%clk 0:00:37]}  Kg4 {[%clk 0:00:19]} 54. Rb8 {[%clk 0:00:34]}  Kg5 {[%clk 0:00:19]} 55. Ke5 {[%clk 0:00:33]}  Kg6 {[%clk 0:00:18]} 56. d5 {[%clk 0:00:31]}  b2 {[%clk 0:00:19]} 57. Ke6 {[%clk 0:00:11]}  Re1 {[%clk 0:00:14]} 58. Rxb2 {[%clk 0:00:11]}  Rxe3+ {[%clk 0:00:15]} 59. Kd7 {[%clk 0:00:11]}  Kf6 {[%clk 0:00:13]} 60. d6 {[%clk 0:00:11]}  Ke5 {[%clk 0:00:11]} 61. Rb5+ {[%clk 0:00:11]}  Kf6 {[%clk 0:00:10]} 62. Rb1 {[%clk 0:00:05]}  Rb3 {[%clk 0:00:10]} 63. Rc1 {[%clk 0:00:04]}  Rd3 {[%clk 0:00:08]} 64. Kc6 {[%clk 0:00:04]}  Ke6 {[%clk 0:00:07]} 65. Re1+ {[%clk 0:00:05]}  Kf7 {[%clk 0:00:07]} 66. d7 {[%clk 0:00:05]}  Re3 {[%clk 0:00:08]} 67. Rxe3 {[%clk 0:00:04]} 1-0


[Site "https://www.chess.com"]